Cogmind - Beta 10.2 @@@ ROGUE MODE // 2021.05.19 @ 09:47:28 Player: RavenousxxxDemon Result: Destroyed by L-31 Rogue with Katana Performance ------------- Evolutions (2) 1000 Regions Visited (4) 800 Robots Destroyed (91) 455 Value Destroyed (2414) 2414 Prototype IDs (0) 0 Alien Tech Used (0) 0 Bonus (22) 22 TOTAL SCORE: 4691 Bonus ------- High Alert Combat Kills 22 Cogmind --------- Core Integrity 0/550 Matter 278/300 Energy 39/100 System Corruption 2% Temperature Cool (54) Movement Core (400) Ox7 Location -8/Storage Parts ------- > --- POWER (2) -------- (None) > --- PROPULSION (3) --- (None) > --- UTILITY (3) ------ Large Storage Unit > --- WEAPON (3) ------- Spread Laser Spread Laser > --- INVENTORY (10) --- Targeting Computer Heavy Assault Rifle Faulty Improved Assault Rifle Assault Cannon Peak State ------------ > --- POWER ------------ Light Deuterium Engine Light Angular Momentum Engine > --- PROPULSION ------- Aluminum Leg Aluminum Leg Titanium Leg > --- UTILITY ---------- Large Storage Unit Hardlight Generator > --- WEAPON ----------- Heavy Assault Rifle Heavy Assault Rifle Flak Cannon > --- INVENTORY -------- Deuterium Engine Spread Laser Spread Laser Assault Rifle Heavy Assault Rifle Heavy Assault Rifle [Rating: 25] Favorites ----------- Power Deuterium Engine Engine Deuterium Engine Power Core Light Nuclear Core Propulsion Carbon-fiber Leg Treads Light Treads Leg Carbon-fiber Leg Utility Large Storage Unit Device Improved Heat Sink Storage Large Storage Unit Protection Medium Armor Plating Weapon Heavy Assault Rifle Energy Gun Medium Laser Ballistic Gun Heavy Assault Rifle Ballistic Cannon Flak Cannon Special Weapon Welding Torch Build | -11 -10 -9 -8 -8 ------- Run | Scr Mat Mat Mat Sto Slots Evolved 4 | . . 2 2 . Power 1 | . . 1 . . Propulsion 1 | . . . 1 . Utility 1 | . . 1 . . Weapon 1 | . . . 1 . Parts Attached 76 | 6 14 21 23 12 Power 16 | 1 3 5 6 1 Engine 12 | 1 1 5 4 1 Core 4 | . 2 . 2 . Reactor . | . . . . . Propulsion 21 | 2 2 5 8 4 Treads 5 | 2 2 1 . . Leg 16 | . . 4 8 4 Wheel . | . . . . . Hover . | . . . . . Flight . | . . . . . Utility 11 | 1 1 4 4 1 Device 2 | . . . 2 . Storage 3 | 1 . 2 . . Processor . | . . . . . Hackware . | . . . . . Protection 6 | . 1 2 2 1 Artifact . | . . . . . Weapon 28 | 2 8 7 5 6 Energy Gun 11 | 1 7 . . 3 Energy Cannon . | . . . . . Ballistic Gun 15 | 1 1 6 4 3 Ballistic Cannon 1 | . . . 1 . Launcher . | . . . . . Special Weapon 1 | . . 1 . . Impact Weapon . | . . . . . Slashing Weapon . | . . . . . Piercing Weapon . | . . . . . Special Melee Weapon . | . . . . . Unidentified Prototypes . | . . . . . Parts Lost 40 | . 5 9 10 16 Power 9 | . 2 1 3 3 Propulsion 11 | . . 3 2 6 Utility 7 | . . 2 2 3 Weapon 13 | . 3 3 3 4 Highest Loss Streak 9 | . 3 5 3 9 Average Slot Usage (%) 79 | . 78 84 75 80 Engine 14 | . 4 20 14 8 Core 1 | . 2 . 2 6 Treads 6 | . 28 3 . . Leg 13 | . . 15 16 18 Device 2 | . . . 5 8 Storage 10 | . 14 11 9 9 Protection 5 | . 1 10 1 5 Energy Gun 5 | . 26 2 . . Ballistic Gun 16 | . 1 19 20 24 Ballistic Cannon 1 | . . . 5 . Naked Turns . | . . . . . Heaviest Build 54 | 11 18 54 47 41 Greatest Support 40 | 40 40 40 37 35 Greatest Overweight (x) 8 | . . 2 3 8 Average Overweight (x) . | . . 1 1 1 Largest Inventory Capacity 10 | 6 6 10 10 10 Average Capacity 9 | 5 6 9 10 10 Most Carried 9 | 4 6 9 8 7 Average Carried 5 | 2 5 6 6 5 Final Capacity 10 | 6 6 10 10 10 Final Carried 7 | 4 5 7 5 4 Class Distribution -------------------- 62% | Mutant 10% | Scavenger-Tank 9% | Gunner 7% | Tank 4% | Scavenger-Gunner 4% | Scavenger-Mutant Dominant Class ---------------- Mutant | -10/Materials Mutant | -9/Materials Gunner | -8/Materials Scavenger-Tank | -8/Storage Resources | -11 -10 -9 -8 -8 ----------- Run | Scr Mat Mat Mat Sto Matter Collected 2487 | 174 215 683 1030 385 Remotely . | . . . . . Salvage Created 3410 | . 439 1141 990 840 Parts 225 | . 26 86 66 47 Haulers Intercepted 5 | . . 1 2 2 Recyclers Shooed 1 | . . 1 . . Parts Field Recycled . | . . . . . Retrieved Matter . | . . . . . Parts Self-Destructed . | . . . . . Prevented . | . . . . . Kills | -11 -10 -9 -8 -8 ------- Run | Scr Mat Mat Mat Sto Combat Hostiles Destroyed 54 | . 8 19 18 9 Guns 47 | . 8 19 11 9 Cannons 7 | . . . 7 . Classes Destroyed 11 | . 4 5 . 2 Worker 11 | . 1 5 4 1 Builder 6 | . 1 5 . . Tunneler 1 | . . . . 1 Hauler 5 | . . 1 2 2 Recycler 5 | . . 1 1 3 Watcher 9 | . 3 3 2 1 Swarmer 6 | . . 3 3 . Grunt 33 | . 8 11 10 4 Brawler 1 | . . 1 . . Sentry 13 | . . 4 5 4 Hunter 1 | . . . . 1 Best Kill Streak 6 | . 3 6 4 5 Combat Bots Only 4 | . 2 4 4 2 Max Kills in Single Turn 2 | . 2 2 1 2 Gunslinging 1 | . . 1 . . Exploded . | . . . . . Melee . | . . . . . Uniques/NPCs Destroyed . | . . . . . Combat | -11 -10 -9 -8 -8 -------- Run | Scr Mat Mat Mat Sto Damage Taken 5460 | . 729 1332 1695 1704 Core 919 | . 155 212 198 354 Absorbed by Shields 195 | . . . 195 . Core Remaining (%) 61 | 100 38 47 . . Volleys Fired 276 | . 43 104 83 46 Largest 3 | . 2 2 3 3 Hottest 186 | . 100 100 90 186 Shots Fired 625 | . 83 202 225 115 Gun 578 | . 83 202 178 115 Cannon 47 | . . . 47 . Launcher . | . . . . . Special . | . . . . . Kinetic 532 | . 5 190 225 112 Thermal 93 | . 78 12 . 3 Explosive . | . . . . . Electromagnetic . | . . . . . Robot Hit Streak 13 | . 13 7 10 10 Robot Miss Streak 7 | . 3 5 7 4 Penetration Max . | . . . . . Secondary Targets 7 | . 1 4 1 1 Max Gunslinging Chain 1 | . 1 1 1 1 Shots Hit Robots 376 | . 60 115 132 69 Core Hits 177 | . 26 46 72 33 Critical Hits 6 | . . . 4 2 Critical Kills 3 | . . . 2 1 Critical Parts Destroyed 3 | . . . 2 1 Melee Attacks . | . . . . . Impact . | . . . . . Slashing . | . . . . . Piercing . | . . . . . Sneak Attacks . | . . . . . Combat Hostiles . | . . . . . Follow-up Attacks . | . . . . . Damage Inflicted 5883 | . 771 1945 2078 1089 Guns 5037 | . 771 1727 1450 1089 Cannons 628 | . . . 628 . Explosions 189 | . . 189 . . Melee . | . . . . . Ramming 29 | . . 29 . . Kinetic 4820 | . 53 1627 2078 1062 Thermal 1034 | . 718 289 . 27 Explosive . | . . . . . Electromagnetic . | . . . . . Impact . | . . . . . Slashing . | . . . . . Piercing . | . . . . . Highest Corruption 2 | . . 1 1 2 Average Corruption 1 | . . 1 1 1 Corruption Purged . | . . . . . Effects 16 | . . 4 7 5 Message Errors 5 | . . . 2 3 Data Loss (minor) 2 | . . 2 . . Targeting Errors 9 | . . 2 5 2 Overload Shots . | . . . . . Overflow Damage 73 | . . 73 . . Projectiles . | . . . . . Explosions 73 | . . 73 . . Melee . | . . . . . Knockbacks 19 | . . . 19 . Impact . | . . . . . Kinetic 17 | . . . 17 . Secondary 2 | . . . 2 . Self-Inflicted Damage 190 | . . 190 . . Shots 2 | . . 2 . . Rammed 3 | . 1 2 . . Targets Rammed 3 | . 1 2 . . Kicked . | . . . . . Crushed . | . . . . . Highest Temperature 378 | . 302 378 215 120 Average Temperature 67 | . 101 60 50 37 Received Heat Transfer 2224 | . 372 456 721 675 Effects 6 | . 1 5 . . Shutdowns 1 | . . 1 . . Energy Bleed 1 | . . 1 . . Interference 3 | . 1 2 . . Short Circuit 1 | . . 1 . . Siege Activations . | . . . . . Robots Corrupted . | . . . . . Combat Hostiles . | . . . . . Parts Fried . | . . . . . Impact Corruptions . | . . . . . Robots Melted . | . . . . . Combat Hostiles . | . . . . . Parts Melted 1 | . 1 . . . Heat Transferred 2557 | . 2109 396 . 52 Parts Sabotaged . | . . . . . Parts Stolen . | . . . . . Parts Stripped . | . . . . . Power Chain Reactions . | . . . . . Missiles Intercepted . | . . . . . Alert | -11 -10 -9 -8 -8 ------- Run | Scr Mat Mat Mat Sto Peak Influence 415 | . 144 298 354 415 Initial 138 | . . 34 94 138 Average 145 | . 54 125 193 282 Maximum Alert Level 2 | . . 1 1 2 Low Security (%) 64 | 100 100 71 44 23 Level 1 34 | . . 28 55 66 Level 2 1 | . . . . 9 Level 3 . | . . . . . Level 4 . | . . . . . Level 5 . | . . . . . High Security . | . . . . . Max Security . | . . . . . Squads Dispatched 8 | . 2 3 2 1 Investigation 2 | . 1 . 1 . Extermination . | . . . . . Reinforcement 6 | . 1 3 1 1 Assault . | . . . . . Garrison . | . . . . . Intercept . | . . . . . Construction Impeded 1 | . . . . 1 Haulers Reinforced . | . . . . . Stealth | -11 -10 -9 -8 -8 --------- Run | Scr Mat Mat Mat Sto Distress Signals 11 | . . 4 3 4 Communications Jammed . | . . . . . Distress Signals . | . . . . . Times Spotted 102 | . 13 37 36 16 Peak Tracking Total 6 | . 3 6 5 6 Tactical Retreats 9 | . . 3 4 2 Traps | -11 -10 -9 -8 -8 ------- Run | Scr Mat Mat Mat Sto Traps Triggered 7 | . 3 . 1 3 Indirectly . | . . . . . Trap Hack Attempts . | . . . . . Triggered . | . . . . . Disarmed . | . . . . . Reprogrammed . | . . . . . Reused . | . . . . . Traps Extracted . | . . . . . Installed . | . . . . . Triggered . | . . . . . Machines | -11 -10 -9 -8 -8 ---------- Run | Scr Mat Mat Mat Sto Machines Disabled 6 | . . 5 . 1 Max in Single Turn 5 | . . 5 . 1 Machines Sabotaged . | . . . . . Garrisons Compromised . | . . . . . Overloaded Fab Kills . | . . . . . Fab Network Shutdowns . | . . . . . Hacking | -11 -10 -9 -8 -8 --------- Run | Scr Mat Mat Mat Sto Machines Accessed 9 | . . 6 2 1 Terminals 6 | . . 4 1 1 Fabricators . | . . . . . Repair Stations . | . . . . . Recycling Units 3 | . . 2 1 . Scanalyzers . | . . . . . Garrison Access . | . . . . . Total Hacks 16 | . . 9 6 1 Successful 12 | . . 7 4 1 Failed 4 | . . 2 2 . Catastrophic . | . . . . . Database Lockouts . | . . . . . Manual . | . . . . . Terminals 12 | . . 7 4 1 Fabricators . | . . . . . Repair Stations . | . . . . . Recycling Units 4 | . . 2 2 . Scanalyzers . | . . . . . Garrison Access . | . . . . . Terminal Hacks 8 | . . 5 2 1 Record 3 | . . . 2 1 Alert Level 3 | . . 3 . . Unreport Threat 1 | . . 1 . . Hauler Manifests 1 | . . 1 . . Fabricator Hacks . | . . . . . Repair Station Hacks . | . . . . . Recycling Unit Hacks 4 | . . 2 2 . Process 1 | . . . 1 . Report Inventory 1 | . . . 1 . Retrieve Components 2 | . . 2 . . Scanalyzer . | . . . . . Garrison Access Hacks . | . . . . . Unauthorized Hacks . | . . . . . Terminals . | . . . . . Fabricators . | . . . . . Repair Stations . | . . . . . Recycling Units . | . . . . . Scanalyzers . | . . . . . Garrison Access . | . . . . . Data Cores Recovered . | . . . . . Used . | . . . . . Hacking Detections 5 | . . 3 2 . Full Trace Events 2 | . . 1 1 . Feedback Events . | . . . . . Feedback Blocked . | . . . . . Robot Schematics Acquired . | . . . . . Robots Built . | . . . . . Matter . | . . . . . Time . | . . . . . Total Robot Build Rating . | . . . . . Part Schematics Acquired . | . . . . . Parts Built . | . . . . . Matter . | . . . . . Time . | . . . . . Total Part Build Rating . | . . . . . Parts Repaired . | . . . . . Time . | . . . . . Parts Recycled . | . . . . . Recycled Matter . | . . . . . Retrieved Matter . | . . . . . Retrieved Components 20 | . . 20 . . Parts Scanalyzed . | . . . . . Part Schematics Acquired . | . . . . . Parts Damaged . | . . . . . Bothacking | -11 -10 -9 -8 -8 ------------ Run | Scr Mat Mat Mat Sto Used RIF Installer . | . . . . . Robots Hacked . | . . . . . Non-combat . | . . . . . Combat . | . . . . . Robot Hacks Applied . | . . . . . Relay Couplers Released . | . . . . . Robots Rewired . | . . . . . Allies Hacked . | . . . . . Hacks Repelled . | . . . . . Allies | -11 -10 -9 -8 -8 -------- Run | Scr Mat Mat Mat Sto Total Allies . | . . . . . Largest Group . | . . . . . Highest-Rated Group . | . . . . . Highest-Rated Ally . | . . . . . Total Orders . | . . . . . Ally Attacks . | . . . . . Total Damage . | . . . . . Kills . | . . . . . Allies Corrupted . | . . . . . Allies Melted . | . . . . . Intel | -11 -10 -9 -8 -8 ------- Run | Scr Mat Mat Mat Sto Robot Analysis Total . | . . . . . Derelict Logs Recovered . | . . . . . Drone Launches . | . . . . . Drone Recoveries . | . . . . . Exploration | -11 -10 -9 -8 -8 ------------- Run | Scr Mat Mat Mat Sto Turns Passed 3946 | 163 696 1481 1156 450 Spaces Moved 1797 | 96 334 693 503 171 Core 6 | 5 . . . 1 Treads 540 | 91 334 115 . . Legs 1251 | . . 578 503 170 Wheels . | . . . . . Hover . | . . . . . Flight . | . . . . . Fastest Speed 50 | 50 160 150 150 120 Average Speed 160 | 154 160 159 164 158 Slowest Speed 450 | 160 160 180 210 450 Overloaded Moves . | . . . . . Propulsion Burnouts . | . . . . . Robots Hopped . | . . . . . Cave-ins Triggered . | . . . . . Exploration Rate (%) 37 | 8 46 60 39 35 Regions Visited 4 Branch Regions 1 Pre-discovered Areas . | . . . . . Known Exits Taken . | . . . . . Unknown Exits Taken 4 | 1 1 1 1 . Scrap Searched . | . . . . . Spaces Dug . | . . . . . Terrain Destroyed 34 | . . 34 . . Melee . | . . . . . Projectile . | . . . . . AOE 34 | . . 34 . . Terrain Rammed . | . . . . . Walls Destroyed . | . . . . . Machines Disabled . | . . . . . Actions | -11 -10 -9 -8 -8 --------- Run | Scr Mat Mat Mat Sto Total 2299 | 111 413 865 650 260 Wait 48 | . . 14 18 16 Move 1793 | 95 333 692 502 171 Hop . | . . . . . Pick Up 73 | 10 12 20 20 11 Fast Attach 3 | . 3 . . . Attach 47 | 6 5 8 20 8 Detach 2 | . 2 . . . Swap 26 | . 6 13 3 4 Drop 28 | . 8 12 4 4 Fire 276 | . 43 104 83 46 Melee . | . . . . . Ram . | . . . . . Kick 2 | . . 2 . . Crush 1 | . 1 . . . Escape Stasis . | . . . . . Rewire . | . . . . . Trap . | . . . . . Miscellaneous . | . . . . . Route ------- -11/Scrapyard -10/Materials (discovered 3 exits: *Mat x2 / [*Min]) -9/Materials (discovered 2 exits: *Mat / [*Min]) -8/Materials (discovered 3 exits: [*Fac x2] / *Sto) -8/Storage History --------- Turn | Location | Event 3 | -11/Scrapyard | Discovered new exit (range 16) 164 | -11/Scrapyard | Entered Materials 309 | -10/Materials | Discovered new exit (range 11) 318 | -10/Materials | Build established: Mutant 511 | -10/Materials | Core integrity fell below 50% 528 | -10/Materials | Lost 3 parts (1p2w) 760 | -10/Materials | Discovered new exit (range 16) 830 | -10/Materials | Discovered new exit (range 14) 860 | -10/Materials | Entered another Materials area 860 | -9/Materials | Evolved 2 slots: Power x1, Utility x1 1350 | -9/Materials | Discovered new exit (range 16) 1585 | -9/Materials | Discovered new exit (range 7) 1967 | -9/Materials | Core integrity fell below 50% 2025 | -9/Materials | Lost 5 parts (3n2w) 2341 | -9/Materials | Entered another Materials area 2341 | -8/Materials | Evolved 2 slots: Propulsion x1, Weapon x1 2664 | -8/Materials | Build established: Gunner 2737 | -8/Materials | Discovered new exit (range 13) 3045 | -8/Materials | Lost 3 parts (1p1n1u) 3285 | -8/Materials | Discovered new exit (range 15) 3445 | -8/Materials | Discovered new exit (range 16) 3497 | -8/Materials | Entered Storage 3852 | -8/Storage | Core integrity fell below 50% 3880 | -8/Storage | Lost 3 parts (1p1n1w) 3940 | -8/Storage | Core integrity fell below 20% 3947 | -8/Storage | Destroyed by L-31 Rogue with Katana Last Messages --------------- 03930_ 3NCWY5#B1GHOT QNBFBLKA ,J9XIEH 03930_ U-05 Engineer lays Concrete. 03930_ K-01 Serf collects debris. 03930_ Triggered Proton Bomb Trap. 03930_ A bubble of electromagnetic force engulfs the area. 03930_ Hvy. Assault Rifle destroyed. 03930_ R-06 Scavenger destroyed. 03930_ Door malfunctions. 03931_ U-05 Engineer lays Concrete. 03931_ K-01 Serf collects debris. 03932_ U-05 Engineer lays Concrete. 03933_ W-25 Informer sends out distress signal. 03933_ R-06 Scavenger collects Prototype Energy Gun. 03934_ K-01 Serf collects debris. 03934_ Carbon-fiber Leg destroyed. 03935_ U-05 Engineer builds a Door. 03939_ U-05 Engineer builds a Wall. 03941_ Aluminum Leg destroyed. 03943_ U-05 Engineer lays Concrete. 03946_ Beam Rifle destroyed. Map ----- +----------------------------------------------------+ | ????????????# !??????????# #???#*! ! | | ????????????# ##### !#####!!=/ | | ????????????# + ==!%=!+%=!/ | | ????????????# ### ############=[ | | ????????????? ??????# #??????????#%! | | ?????????????? ??????#[#??????????# ] | | ??????????????? ?????# #??????###?# | | ??????########?##+######=#???#### ####### | | ??????# #[!!= [=%=#??## # | | ??????# #%[[#######??#T # | | ??????# =+=[a#????????## + | | ??????# #[u[#?????????# # | | ??????# =+! ##????????# """ """ + | | ??????# *% % #?""#????# """ """ # | | ??????# ==% ##?Y"###??# """ """=#[ | | ??????# #* w#? ?# # | | ??????# # #? ??########### | | ??????########?# g # ?????????????# | | ???????????????# # """ ?????????????## | | ???????????????# %/ """ ??????????????? | | ???????????????# =# """ ??????????????? | | ???????????????# # ??????????????? | | ???????????????# g #? ? /?????????????? | | ???????????????# a #??##??"#????????????? | | ???????????????#l #????????????????????? | | ???????????????#@ #????????????????????? | | ???????????????# #????????????????????? | | ???????????????# gg#????????????????????? | | ???????????????# ???????????????????? | | ???????????????+ ??????????????????? | | ???????????????# ?????????????????? | | ???????????????###+#+###????????????????? | | ????????????????????????????????????????? | | ????????????????????????????????????????? | | ????????????????????????????????????????? | | ????????????????????????????????????????? | | ????????????????????????????????????????? | | ????????????????????????????????????????? | | ????????????????????????????????????????? | | ????????????????????????????????????????? | | ????????????????????????????????????????? | | ????????????????????????????????????????? | | ????????????????????????????????????????? | | ????????????????????????????????????????? | | ????????????????????????????????????????? | | ????????????????????????????????????????? | | ????????????????????????????????????????? | | ????????????????????????????????????????? | | ????????????????????????????????????????? | | ????????????????????????????????????????? | +----------------------------------------------------+ Best States ------------- Heat Dissipation 45 Energy Generation 27 Energy Capacity 450 Matter Stores 300 Matter Capacity 300 Sight Range 16 Terrain Scan Density 10 Armor Coverage 450 Weapon Shielding 66 Evasion (%) 40 Recoil Reduction 2 Item Schematics ----------------- None Robot Schematics ------------------ None Fabricated ------------ Nothing Alien Tech Used ----------------- None Achievements -------------- Everything Is Under Control Shopping List Challenges ------------ None Game ------ Seed ForceShrapnelPod Manual? 0 Play Time 00:51:08 Cumulative 3.6 hours Start 2021.05.19 @ 08:44:53 End 2021.05.19 @ 09:47:28 Sessions 1 Manual Loads 0 Difficulty Rogue Special Mode None Game No. 5 Rogue 5 Adventurer 0 Explorer 0 Win Type - Total 0 Types 0/0/0/0/0/0/0/0/0 Lore% 1 Gallery% 7 Achievement% 8 Wizard Run 0 Options --------- ASCII 0 Keyboard 0 Movement Mouse Keybinds 0 Fullscreen 1 Font 18/SmallcapsGlow Map View 76x50 Tactical HUD 1 Map Filters NONE Filters NONE Steam 1 RUN: d9980a36-0f07-43b8-8a41-7962f1cfd35f